[Event "SRB-ch Semifinal 2022"]
[Site "Paracin"]
[Date "2022.03.22"]
[Round "8.14"]
[White "Jurisic, Iskra"]
[Black "Srdanovic, Jovana"]
[Result "0-1"]
[ECO "D46"]
[WhiteElo "1827"]
[BlackElo "2194"]
[Annotator "NA"]
[PlyCount "112"]
[EventDate "2022.03.17"]
[EventType "swiss"]
[EventCountry "SRB"]
[SourceTitle "playchess.com"]
[Source "ChessBase"]
[SourceQuality "1"]
[TimeControl "40/5400+30:1800+30"]

1. d4 {[%emt 0:00:04]} d5 {[%emt 0:01:43]} 2. c4 {[%emt 0:00:14]} c6 {[%emt 0:00:43]} 3. Nc3 {[%emt 0:00:36]} Nf6 {[%emt 0:00:13]} 4. Nf3 {[%emt 0:00:17]} e6 {[%emt 0:00:57]} 5. e3 {[%emt 0:00:47]} Nbd7 {[%emt 0:00:17]} 6. Qc2 {[%emt 0:00:29]} Bd6 {[%emt 0:00:13]} 7. Bd3 {[%emt 0:01:04]} dxc4 {[%emt 0:01:26]} 8. Bxc4 {[%emt 0:00:21]} b5 {[%emt 0:00:56]} 9. Be2 {[%emt 0:01:18]} Bb7 {[%emt 0:00:07]} 10. O-O {[%emt 0:02:13]} (10. e4 $14 {deserves consideration.} e5 11. dxe5 Nxe5 12. Nh4) 10... O-O {[%emt 0:01:28]} 11. Rd1 {[%emt 0:03:11]} Qc7 {[%emt 0:00:21]} 12. Bd2 {[%emt 0:02:49]} a6 {[%emt 0:05:27]} 13. b4 {[%emt 0:03:27]} e5 {[%emt 0:11:21]} 14. h3 {[%emt 0:06:08]} Rfe8 {[%emt 0:06:23]} 15. Ng5 $15 {[%emt 0:12:20]} (15. Rac1 $11 {should be considered.}) 15... h6 {[%emt 0:21:43]} 16. Nge4 {[%emt 0:09:11]} Bf8 {[%emt 0:07:35]} 17. Bf3 {[%emt 0:02:38]} Qb6 {[%emt 0:03:12]} 18. Nc5 {[%emt 0:03:49]} Nxc5 {[%emt 0:01:30]} 19. dxc5 {[%emt 0:00:54]} Qc7 {[%emt 0:00:06]} 20. Ne4 {[%emt 0:01:33]} Nd5 {[%emt 0:00:54]} 21. Be1 {[%emt 0:05:06]} Rad8 {[%emt 0:10:28]} 22. a3 {[%emt 0:05:36]} Qc8 {[%emt 0:05:35]} 23. Nd6 {[%emt 0:04:38]} Bxd6 {[%emt 0:01:06]} 24. cxd6 {[%emt 0:00:13]} Nf6 {[%emt 0:02:22]} 25. Bc3 {[%emt 0:05:53]} Qe6 {[%emt 0:00:40]} 26. g4 {[%emt 0:06:33]} Rxd6 {[%emt 0:01:03]} 27. Rxd6 {[%emt 0:00:26]} Qxd6 {[%emt 0:00:03]} 28. Rd1 {[%emt 0:00:17]} Qe6 {[%emt 0:00:06]} 29. Qf5 {[%emt 0:02:53]} Qe7 {[%emt 0:08:04]} 30. g5 {[%emt 0:02:14]} hxg5 {[%emt 0:00:34]} 31. Qxg5 {[%emt 0:00:19]} Nd5 {[%emt 0:00:51]} 32. Qxe7 {[%emt 0:01:19]} Rxe7 {[%emt 0:00:04]} 33. Bxd5 {[%emt 0:01:27]} cxd5 {[%emt 0:00:05]} 34. Kh2 {[%emt 0:03:37]} f6 {[%emt 0:00:10]} 35. Bb2 {[%emt 0:00:18]} Kf7 {[%emt 0:10:14]} 36. Kg3 {[%emt 0:00:37]} Ke6 {[%emt 0:00:00]} 37. f4 {[%emt 0:00:57]} Kf5 {[%emt 0:00:00]} 38. fxe5 {[%emt 0:01:48]} fxe5 {[%emt 0:00:00]} 39. Kf2 {[%emt 0:00:25]} Ke4 {[%emt 0:00:00]} 40. Ke2 {[%emt 0:02:39]} Bc8 {[%emt 0:00:00]} 41. Rh1 {[%emt 0:30:20]} Rc7 {[%emt 0:26:06]} 42. Kd2 {[%emt 0:00:15]} Rf7 {[%emt 0:00:07]} 43. Rh2 {[%emt 0:03:06]} Rf3 {[%emt 0:01:14]} 44. h4 {[%emt 0:00:51]} Bh3 {[%emt 0:05:08]} 45. Ba1 {[%emt 0:01:35]} Bf1 {[%emt 0:00:00]} 46. h5 {[%emt 0:00:00]} Bh3 {[%emt 0:00:00]} 47. Bb2 {[%emt 0:00:00]} Rg3 {[%emt 0:00:00]} 48. Bc3 {[%emt 0:00:00]} Rg2+ {[%emt 0:00:00]} 49. Rxg2 {[%emt 0:00:00]} Bxg2 {[%emt 0:00:00]} 50. Ke2 {[%emt 0:00:00]} Bf3+ {[%emt 0:00:00]} 51. Kf2 {[%emt 0:00:00]} Bxh5 {[%emt 0:00:00]} 52. Bb2 {[%emt 0:00:00]} g5 {[%emt 0:00:00]} 53. Kg3 {[%emt 0:00:00]} Kxe3 {[%emt 0:00:00]} 54. Bxe5 {[%emt 0:00:00]} d4 {[%emt 0:00:00]} 55. Bf6 {[%emt 0:00:00]} d3 {[%emt 0:00:00]} 56. Bxg5+ {[%emt 0:00:00]} Ke2 {[%emt 0:00:00]} 0-1

[Event "SRB-ch Semifinal 2022"]
[Site "Paracin"]
[Date "2022.03.22"]
[Round "8.15"]
[White "Grozdanovic, Anastasia"]
[Black "Ostojic, Katarina"]
[Result "1-0"]
[ECO "A87"]
[WhiteElo "2005"]
[BlackElo "2066"]
[Annotator "NA"]
[PlyCount "53"]
[EventDate "2022.03.17"]
[EventType "swiss"]
[EventCountry "SRB"]
[SourceTitle "playchess.com"]
[Source "ChessBase"]
[SourceQuality "1"]
[TimeControl "40/5400+30:1800+30"]

1. d4 {[%emt 0:00:01]} f5 {[%emt 0:00:13]} 2. Nf3 {[%emt 0:00:14]} d6 {[%emt 0:00:25]} 3. g3 {[%emt 0:00:47]} Nf6 {[%emt 0:00:15]} 4. Bg2 {[%emt 0:00:20]} g6 {[%emt 0:00:13]} 5. O-O {[%emt 0:01:20]} Bg7 {[%emt 0:00:03]} 6. c4 {[%emt 0:00:22]} O-O {[%emt 0:00:15]} 7. Nc3 {[%emt 0:00:58]} Qe8 {[%emt 0:00:10]} 8. Re1 {[%emt 0:00:05]} Qf7 {[%emt 0:00:37]} 9. d5 {[%emt 0:00:39]} Ne4 {[%emt 1:32:49]} 10. Ng5 {[%emt 1:30:44]} Nxc3 {[%emt 0:00:00]} 11. bxc3 {[%emt 0:00:30]} Qf6 {[%emt 0:00:00]} 12. e4 {[%emt 0:00:30]} h6 $14 {[%emt 0:01:30]} 13. Nf3 {[%emt 0:00:30]} Qxc3 {[%emt 0:00:00]} 14. Rb1 {[%emt 0:00:30]} fxe4 {[%emt 0:01:00]} 15. Bb2 {[%emt 0:00:30]} Qa5 {[%emt 0:00:30]} 16. Bxg7 {[%emt 0:00:30]} Kxg7 {[%emt 0:00:30]} 17. Qd4+ {[%emt 0:00:30]} Kg8 {[%emt 0:00:30]} 18. Rxe4 {[%emt 0:00:30]} Rf7 {[%emt 0:00:30]} 19. Rbe1 {[%emt 0:00:30]} Bf5 {[%emt 0:00:30]} 20. Rxe7 {[%emt 0:00:30]} Nd7 {[%emt 0:00:30]} 21. Rxf7 {[%emt 0:00:00]} Kxf7 {[%emt 0:00:00]} 22. g4 {[%emt 0:01:00]} Ne5 {[%emt 0:01:00]} 23. Nxe5+ {[%emt 0:00:00]} dxe5 {[%emt 0:00:30]} 24. Rxe5 {[%emt 0:01:00]} Bb1 {[%emt 0:00:30]} 25. Qf4+ {[%emt 0:00:30]} Kg8 {[%emt 0:00:00]} 26. Re7 {[%emt 0:00:30]} Rf8 {[%emt 0:00:00]} 27. Qxh6 {[%emt 0:00:30]} 1-0